Cogmind - Beta 15 @@@ ROGUE MODE // 2025.05.28 @ 22:15:46 Player: celerysam Result: Destroyed by 4N-UHD(j) with Overtuned Pulse Rifle Performance ------------- Evolutions (0) 0 Regions Visited (3) 600 Robots Destroyed (24) 120 Value Destroyed (599) 599 Prototype IDs (7) 140 Alien Tech Used (0) 0 Bonus (800) 800 TOTAL SCORE: 2259 Bonus ------- Registered with UFD 300 Met Optimus in HQ 500 Cogmind --------- Core Integrity 0/250 Matter 240/300 Energy 215/2600 System Corruption 0% Temperature Cool (49) Movement Treading (240) Ox1 Location -8/Scraptown Parts ------- > --- POWER (1) -------- MA-1KR's Cyclogen > --- PROPULSION (2) --- Medium Treads Improved Medium Treads > --- UTILITY (2) ------ Huge Storage Unit Propulsion Shielding > --- WEAPON (2) ------- Proton Cannon Assault Cannon > --- INVENTORY (25) --- Nuclear Core Spiked Treads Advanced Treads Airjet Airjet Cooling System Medium Storage Unit Vampiric Humpback Rocket Booster Structural Scanner Improved Signal Interpreter Advanced Terrain Scanner Advanced Terrain Scan Processor Advanced ECM Suite Improved Reaction Control System Cloaking Device Improved Heavy Armor Plating Field Laser Gatling Laser Heavy Assault Rifle Missile Launcher Datajack Heavy Mace Peak State ------------ > --- POWER ------------ MA-1KR's Cyclogen > --- PROPULSION ------- Medium Treads Improved Medium Treads > --- UTILITY ---------- Huge Storage Unit Propulsion Shielding > --- WEAPON ----------- Proton Cannon Heavy Mace > --- INVENTORY -------- Nuclear Core Light Fission Core Spiked Treads Advanced Treads Wheel Airjet Airjet Cooling System Medium Storage Unit Rocket Booster Structural Scanner Improved Signal Interpreter Advanced Terrain Scanner Advanced Terrain Scan Processor Advanced ECM Suite Improved Reaction Control System Cloaking Device Improved Heavy Armor Plating Field Laser Gatling Laser Heavy Assault Rifle Assault Cannon Missile Launcher Datajack [Rating: 35] Favorites ----------- Power Light Fission Core Engine Ion Engine Power Core Light Fission Core Reactor MA-1KR's Cyclogen Propulsion Wheel Treads Light Treads Leg Aluminum Leg Wheel Wheel Utility Huge Storage Unit Device Structural Scanner Storage Huge Storage Unit Protection Propulsion Shielding Weapon Heavy Assault Rifle Energy Gun Small Laser Energy Cannon Proton Cannon Ballistic Gun Heavy Assault Rifle Ballistic Cannon Assault Cannon Launcher Subdweller Shrapnel Launcher Special Weapon Mining Laser Impact Weapon Heavy Mace Build | -11 -10 -10 -8 ------- Run | Yrd Mat Sub Scr Slots Evolved . | . . . . Power . | . . . . Propulsion . | . . . . Utility . | . . . . Weapon . | . . . . Parts Attached 34 | 6 10 10 8 Power 6 | 1 2 1 2 Engine 4 | 1 2 1 . Core 1 | . . . 1 Reactor 1 | . . . 1 Propulsion 11 | 2 3 4 2 Treads 4 | . . 2 2 Leg 2 | 2 . . . Wheel 5 | . 3 2 . Hover . | . . . . Flight . | . . . . Utility 5 | 1 3 1 . Device 1 | . 1 . . Storage 3 | 1 2 . . Processor . | . . . . Hackware . | . . . . Protection 1 | . . 1 . Artifact . | . . . . Weapon 12 | 2 2 4 4 Energy Gun 3 | 1 1 1 . Energy Cannon 2 | . 1 . 1 Ballistic Gun 3 | 1 . 1 1 Ballistic Cannon 1 | . . . 1 Launcher 1 | . . 1 . Special Weapon 1 | . . 1 . Impact Weapon 1 | . . . 1 Slashing Weapon . | . . . . Piercing Weapon . | . . . . Special Melee Weapon . | . . . . Unidentified Prototypes 1 | . . . 1 Parts Lost 7 | . 2 5 . Power 2 | . 1 1 . Propulsion 3 | . 1 2 . Utility . | . . . . Weapon 2 | . . 2 . Highest Loss Streak 3 | . 1 3 . To Critical Strikes . | . . . . Average Backups 19 | 4 9 14 23 Power 1 | . 1 1 1 Propulsion 5 | 3 4 3 5 Utility 6 | . . 3 8 Weapon 4 | . 1 3 5 Tool/Special . | . . . . Unused Backups 29 | . . . 29 Power 3 | . . . 3 Propulsion 6 | . . . 6 Utility 11 | . . . 11 Weapon 7 | . . . 7 Tool/Special 2 | . . . 2 Average Slot Usage (%) 97 | . 94 87 100 Engine 7 | . 13 14 4 Core 6 | . . . 9 Leg 1 | . 6 . . Wheel 24 | . 19 15 27 Device 3 | . 10 13 . Storage 14 | . 14 14 14 Protection 9 | . . . 14 Energy Gun 3 | . 14 10 . Energy Cannon 8 | . 8 1 9 Ballistic Gun 11 | . 5 9 13 Launcher 3 | . . 5 4 Peak Build Rating 35 | 6 10 11 35 Average Rating 17 | 3 7 9 21 On Entrance 6 | . 6 10 11 Naked Turns . | . . . . Heaviest Build 112 | 10 92 97 112 Greatest Support 58 | 20 26 40 58 Greatest Overweight (x) 9 | . 3 6 9 Average Overweight (x) 6 | . 1 4 8 Largest Inventory Capacity 25 | 8 25 25 25 Average Capacity 23 | 6 17 25 25 Most Carried 25 | 6 16 16 25 Average Carried 19 | 4 9 14 23 Final Capacity 25 | 8 25 25 25 Final Carried 25 | 6 16 15 25 Class Distribution -------------------- 100% | Mutant Dominant Class ---------------- Mutant | -10/Materials Mutant | -10/Subcaves Mutant | -8/Scraptown Resources | -11 -10 -10 -8 ----------- Run | Yrd Mat Sub Scr Matter Collected 650 | 213 165 60 212 Remotely . | . . . . Salvage Created 737 | . 553 184 . Parts 49 | . 37 12 . Haulers Intercepted 2 | . 2 . . Recyclers Shooed . | . . . . Parts Field Recycled . | . . . . Retrieved Matter . | . . . . Parts Self-Destructed 7 | . . 7 . Prevented . | . . . . Kills | -11 -10 -10 -8 ------- Run | Yrd Mat Sub Scr Combat Hostiles Destroyed 19 | . 13 6 . Guns 12 | . 9 3 . Cannons 3 | . 3 . . AOE 4 | . 1 3 . Classes Destroyed 6 | . 5 1 . Worker 1 | . 1 . . Hauler 2 | . 2 . . Watcher 2 | . 2 . . Swarmer 6 | . 6 . . Grunt 9 | . 7 2 . Subdweller 4 | . . 4 . Best Kill Streak 6 | . 6 2 . Combat Bots Only 5 | . 5 2 . Max Kills in Single Turn 1 | . 1 1 . Gunslinging . | . . . . Exploded 1 | . 1 1 . Melee . | . . . . Uniques/NPCs Destroyed . | . . . . Combat | -11 -10 -10 -8 -------- Run | Yrd Mat Sub Scr Hostile Shots Fired 112 | . 59 50 3 Missed 31 | . 15 16 . Hits 81 | . 44 34 3 Projectile 81 | . 44 34 3 Critical Strikes 2 | . . 1 1 Damage Taken 1261 | . 561 639 61 Core 272 | . 67 162 43 Absorbed by Shields . | . . . . Core Remaining (%) 100 | 100 . . . Volleys Fired 84 | . 54 28 2 Largest 2 | . 2 2 1 Hottest 125 | . 125 125 37 Shots Fired 157 | . 105 50 2 Gun 106 | . 76 30 . Cannon 43 | . 29 12 2 Launcher 6 | . . 6 . Special 2 | . . 2 . Kinetic 42 | . 25 15 2 Thermal 115 | . 80 35 . Explosive . | . . . . Electromagnetic . | . . . . Robot Hit Streak 13 | . 13 10 11 Robot Miss Streak 7 | . 7 3 1 Penetration Max . | . . . . Secondary Targets 1 | . 1 . . Max Gunslinging Chain 1 | . 1 . . Shots Hit Robots 88 | . 56 31 1 Core Hits 40 | . 26 13 1 Critical Kills 1 | . 1 . . Critical Parts Destroyed 1 | . 1 . . Critical Strikes 2 | . 2 . . Destroy 2 | . 2 . . Melee Attacks 2 | . . . 2 Impact 2 | . . . 2 Slashing . | . . . . Piercing . | . . . . Sneak Attacks . | . . . . Combat Hostiles . | . . . . Follow-up Attacks . | . . . . Damage Inflicted 1549 | . 805 722 22 Guns 698 | . 466 232 . Cannons 371 | . 226 123 22 Explosions 480 | . 113 367 . Melee . | . . . . Ramming . | . . . . Kinetic 603 | . 157 424 22 Thermal 833 | . 535 298 . Explosive 113 | . 113 . . Electromagnetic . | . . . . Impact . | . . . . Slashing . | . . . . Piercing . | . . . . Highest Corruption . | . . . . Average Corruption . | . . . . Corruption Purged . | . . . . Corruption Blocked . | . . . . Overload Shots . | . . . . Overflow Damage . | . . . . Projectiles . | . . . . Explosions . | . . . . Melee . | . . . . Knockbacks . | . . . . Impact . | . . . . Kinetic . | . . . . Secondary . | . . . . Self-Inflicted Damage 100 | . 100 . . Shots 1 | . 1 . . Rammed . | . . . . Targets Rammed . | . . . . Kicked . | . . . . Crushed . | . . . . Highest Temperature 343 | . 343 97 16 Average Temperature 74 | . 80 45 12 Received Heat Transfer 397 | . 132 204 61 Effects 1 | . 1 . . Damage (minor) 1 | . 1 . . Siege Activations . | . . . . Martial Activations . | . . . . Shielding Activations . | . . . . Robots Disrupted . | . . . . Combat Hostiles . | . . . . Robots Corrupted . | . . . . Combat Hostiles . | . . . . Parts Fried . | . . . . Impact Corruptions . | . . . . Robots Melted . | . . . . Combat Hostiles . | . . . . Parts Melted 2 | . 2 . . Heat Transferred 1894 | . 1191 703 . Parts Sabotaged . | . . . . Parts Stolen . | . . . . Parts Stripped . | . . . . Power Chain Reactions . | . . . . Alert | -11 -10 -10 -8 ------- Run | Yrd Mat Sub Scr Maximum Alert Level . | . . . . Low Security (%) 100 | 100 100 . . Level 1 . | . . . . Level 2 . | . . . . Level 3 . | . . . . Level 4 . | . . . . Level 5 . | . . . . High Security . | . . . . Max Security . | . . . . Peak Influence 195 | . 195 . . Initial . | . . . . Average 92 | . 102 . . Influence Increases 496 | . 446 50 . Destroy 0b10 Robot/C 300 | . 260 40 . Destroy 0b10 Robot/NC 25 | . 25 . . Destroy Leader 88 | . 78 10 . Successful Hack 9 | . 9 . . Disable Machine 15 | . 15 . . Destroy Structure 29 | . 29 . . Lose Combat Pursuer 30 | . 30 . . Influence Decreases 496 | . 330 166 . Entered New Map 56 | . . 56 . Time Decay 390 | . 310 80 . Lost Part 50 | . 20 30 . Squads Dispatched 4 | . 4 . . Investigation . | . . . . Extermination . | . . . . Reinforcement 4 | . 4 . . Assault . | . . . . Garrison . | . . . . Intercept . | . . . . Searches Triggered . | . . . . Construction Impeded . | . . . . Haulers Reinforced . | . . . . Active Scanning Responses . | . . . . Cargo Convoy Interrupts . | . . . . Stealth | -11 -10 -10 -8 --------- Run | Yrd Mat Sub Scr Distress Signals . | . . . . Communications Jammed . | . . . . Distress Signals . | . . . . Times Spotted 31 | . 23 6 2 Peak Tracking Total 7 | . 7 2 1 Tactical Retreats 1 | . 1 . . Traps | -11 -10 -10 -8 ------- Run | Yrd Mat Sub Scr Traps Triggered 1 | . 1 . . Indirectly . | . . . . Trap Hack Attempts . | . . . . Triggered . | . . . . Disarmed . | . . . . Reprogrammed . | . . . . Reused . | . . . . Traps Extracted . | . . . . Installed . | . . . . Triggered . | . . . . Machines | -11 -10 -10 -8 ---------- Run | Yrd Mat Sub Scr Machines Disabled 4 | . 1 . 3 Max in Single Turn 1 | . 1 . 1 Machines Repaired . | . . . . Machines Dismantled . | . . . . Machines Sabotaged . | . . . . Overloaded Fab Kills . | . . . . Hacking | -11 -10 -10 -8 --------- Run | Yrd Mat Sub Scr Machines Accessed 12 | . 3 . 9 Terminals 2 | . 2 . . Fabricators . | . . . . Repair Stations . | . . . . Recycling Units 1 | . 1 . . Scanalyzers . | . . . . Garrison Access . | . . . . Total Hacks 18 | . 7 . 11 Successful 16 | . 5 . 11 Failed 2 | . 2 . . Catastrophic . | . . . . Database Lockouts . | . . . . Manual 4 | . 4 . . Terminals 6 | . 6 . . Fabricators . | . . . . Repair Stations . | . . . . Recycling Units 1 | . 1 . . Scanalyzers . | . . . . Garrison Access . | . . . . Terminal Hacks 13 | . 2 . 11 Record 10 | . . . 10 Alert Level 1 | . 1 . . Locate Traps 1 | . 1 . . Proto ID Catalog 1 | . . . 1 Fabricator Hacks . | . . . . Repair Station Hacks . | . . . . Recycling Unit Hacks 1 | . 1 . . Report Inventory 1 | . 1 . . Scanalyzer . | . . . . Garrison Access Hacks . | . . . . Unauthorized Hacks 2 | . 2 . . Terminals 2 | . 2 . . Botnet 2 | . 2 . . Fabricators . | . . . . Repair Stations . | . . . . Recycling Units . | . . . . Scanalyzers . | . . . . Garrison Access . | . . . . Data Cores Recovered . | . . . . Used . | . . . . Hacking Detections 2 | . 2 . . Full Trace Events . | . . . . Feedback Events . | . . . . Feedback Blocked . | . . . . Robot Schematics Acquired . | . . . . Robots Built . | . . . . Authchips . | . . . . Time . | . . . . Total Robot Build Rating . | . . . . Part Schematics Acquired . | . . . . Parts Built . | . . . . Authchips . | . . . . Time . | . . . . Total Part Build Rating . | . . . . Parts Repaired . | . . . . Time . | . . . . Parts Recycled . | . . . . Recycled Matter . | . . . . Retrieved Matter . | . . . . Retrieved Components . | . . . . Parts Scanalyzed . | . . . . Part Schematics Acquired . | . . . . Parts Damaged . | . . . . Bothacking | -11 -10 -10 -8 ------------ Run | Yrd Mat Sub Scr Used RIF Installer . | . . . . Robots Hacked . | . . . . Non-combat . | . . . . Combat . | . . . . Robot Hacks Applied . | . . . . Relay Couplers Released . | . . . . Fabnet Peak Effective % . | . . . . Robots Rewired . | . . . . Allies Hacked . | . . . . Hacks Repelled . | . . . . Allies | -11 -10 -10 -8 -------- Run | Yrd Mat Sub Scr Total Allies 1 | . . . 1 Largest Group 1 | . . . 1 Highest-Rated Group 56 | . . . 56 Highest-Rated Ally 56 | . . . 56 Total Orders . | . . . . Ally Attacks 2 | . . . 2 Total Damage 54 | . . . 54 Kills 1 | . . . 1 Allies Corrupted . | . . . . Allies Melted 1 | . . . 1 Intel | -11 -10 -10 -8 ------- Run | Yrd Mat Sub Scr Active Infowar (turns) 1272 | . 658 614 . Structural 1272 | . 658 614 . Robot Analysis Total . | . . . . Derelict Logs Recovered 4 | . . 2 2 Drone Launches . | . . . . Drone Recoveries . | . . . . Exploration | -11 -10 -10 -8 ------------- Run | Yrd Mat Sub Scr Turns Passed 4891 | 86 866 653 3286 Spaces Moved 2437 | 66 543 318 1510 Core 24 | 24 . . . Treads 21 | . . 9 12 Legs 170 | 42 128 . . Wheels 2222 | . 415 309 1498 Hover . | . . . . Flight . | . . . . Fastest Speed 50 | 50 90 131 131 Average Speed 183 | 94 122 171 211 Slowest Speed 320 | 120 135 320 240 Overloaded Moves . | . . . . Propulsion Burnouts . | . . . . Robots Hopped . | . . . . Potential Cave-ins . | . . . . Cave-ins Triggered . | . . . . Exploration Rate (%) 54 | 4 97 30 86 Regions Visited 3 Branch Regions 2 Pre-discovered Areas 3 | . . 1 2 Known Exits Taken . | . . . . Unknown Exits Taken 3 | 1 1 1 . Scrap Searched 6 | . . . 6 Spaces Dug . | . . . . Terrain Destroyed 113 | . 45 67 1 Melee . | . . . . Projectile 1 | . . . 1 AOE 112 | . 45 67 . Terrain Rammed . | . . . . Walls Destroyed . | . . . . Machines Disabled . | . . . . Actions | -11 -10 -10 -8 --------- Run | Yrd Mat Sub Scr Total 2702 | 86 645 367 1604 Wait 62 | 9 17 7 29 Move 2434 | 65 542 317 1510 Hop . | . . . . Pick Up 55 | 6 16 4 29 Fast Attach 9 | 6 1 . 2 Attach 10 | . 5 5 . Detach . | . . . . Swap 16 | . 4 6 6 Drop 30 | . 6 . 24 Fire 84 | . 54 28 2 Melee 2 | . . . 2 Ram . | . . . . Kick . | . . . . Crush . | . . . . Escape Stasis . | . . . . Rewire . | . . . . Trap . | . . . . Miscellaneous . | . . . . Route ------- -11/Scrapyard -10/Materials (discovered 6 exits: [*Mat x3] / [*Min x2] / [*Sub]) -10/Subcaves (discovered 2 exits: [*Mat] / *Scr) -8/Scraptown (discovered 1 exit: [*Fac]) History --------- Turn | Location | Event 18 | -11/Scrapyard | Discovered new exit (range 16) 87 | -11/Scrapyard | Entered Materials 271 | -10/Materials | Discovered new exit (range 14) 316 | -10/Materials | Build established: Mutant 359 | -10/Materials | Discovered new exit (range 16) 522 | -10/Materials | Discovered new exit (range 12) 777 | -10/Materials | Discovered new exit (range 16) 925 | -10/Materials | Discovered new exit (range 11) 944 | -10/Materials | Discovered new exit (range 8) 953 | -10/Materials | Entered Subcaves 954 | -10/Subcaves | Approached by a straggling Scientist 1035 | -10/Subcaves | Lost 3 parts (1n2w) 1057 | -10/Subcaves | Learned Materials interactive machine intel 1098 | -10/Subcaves | Learned location of Storage (-8) 1226 | -10/Subcaves | Discovered new exit (range 7) 1241 | -10/Subcaves | Scientist uncovered a shortcut to Scraptown 1359 | -10/Subcaves | Core integrity fell below 50% 1491 | -10/Subcaves | Core integrity fell below 20% 1606 | -10/Subcaves | Entered Scraptown 2043 | -8/Scraptown | Discovered new exit (range 11) 2160 | -8/Scraptown | Scanned Subdweller tech in exchange for log data 2166 | -8/Scraptown | Learned location of Extension (-5) 2263 | -8/Scraptown | Visited Cave Peace 2345 | -8/Scraptown | Visited Cyclists 2426 | -8/Scraptown | Visited UFD Registry 2426 | -8/Scraptown | Registered with UFD as "Electrogunner" 2864 | -8/Scraptown | Visited Curators Association 2903 | -8/Scraptown | Visited DA-N13 Charitable Foundation 2922 | -8/Scraptown | Found DCF Scrap (26 items) 3028 | -8/Scraptown | Visited Botcube Research 3044 | -8/Scraptown | Found Lrg. Botcube 3102 | -8/Scraptown | Lrg. Botcube activated 3126 | -8/Scraptown | Lrg. Botcube completed mutation into legged form, armed with 1 gun, 1 cannon, 1 melee weapon, 1 special weapon. 3239 | -8/Scraptown | Visited Junk Repository 3429 | -8/Scraptown | Visited Observation Area 3547 | -8/Scraptown | Visited Science Guys 3689 | -8/Scraptown | Visited Fellowship of the Rings 3726 | -8/Scraptown | Visited SPCMW 4016 | -8/Scraptown | Entered Cyclist Reading Room 4528 | -8/Scraptown | Visited Supply Room 4577 | -8/Scraptown | Visited Scrap Suit Storage 4669 | -8/Scraptown | Met Optimus 4669 | -8/Scraptown | Accepted into 0bPrime 4772 | -8/Scraptown | Civil war broke out across Scraptown 4848 | -8/Scraptown | Found Prototype Reactor 4848 | -8/Scraptown | Identified MA-1KR's Cyclogen 4877 | -8/Scraptown | Found Prototype Storage 4892 | -8/Scraptown | Destroyed by 4N-UHD(j) with Overtuned Pulse Rifle Last Messages --------------- 04800_ *bingo collects matter. Optimus: "Someone shut down Triborg? Who would do that? How?!" 04808_ ST-R2G(l) destroyed. 04819_ Enclosure breached. 04822_ Slug penetrates T0-NRZ(j). 04822_ T0-NRZ(j) destroyed. 04826_ Dropped Disposable Heat Sink. 04827_ Acquired Rocket Booster. 04847_ Dropped Lgt. Fission Core. 04848_ Acquired Prototype Reactor. 04848_ Identified MA-1KR's Cyclogen. 04852_ Dropped Broken Sub. Monowheel. 04855_ Acquired Lgt. Fission Core. 04868_ Enclosure breached. 04876_ Dropped Wheel. 04876_ Dropped Lgt. Fission Core. 04877_ Acquired Prototype Storage. 04885_ 4N-UHD(j): "Can't we all just get along?" 04892_ Critical hit (Burn: +50). Map ----- +----------------------------------------------------+ | #?# ""#"#"""" ""# "" "" X"#?????? | | #?# """"#"""" ""# " " ######## | | #?# ""#######" "" "" | | #?# ###?????#" "" "" | | #?# #########" ""# " " ######## | | #?# ""# "" "" ""#?????? | | #?# ""# "" "" ##?????? | | #?# ""# X"#?????? | | #?# ""# ##?????? | | ### ""###### ############# | | """"""""""""""""""""""" | | == """""""""" """"""""""" | | *%! *% | | ! !! ! | | % ! j | | #""""#" | | #????# | | #????#" """ """""""""" """""""""" | | ######### ####????####### ;########## ########## | | ???????# #????????#" "#?# = ** ## | | ??????# #????????##"" !"##?# ==!!! ##""" | | ?????# #?????????# " " #??# ! *!% *##"" ! | | """ ????# #????????##"=* % ""##?# % *! *##""" | | """ ???# #????????#" M[ "#?# ##/ [##"""" | | """ "??# #????????##"" ""##?# ##= ###### | | ???????# #?????????#]"@ "!#??##########????? | | ???????# #????????##"" ""##???????????????? | | ""??????# #????????#" " " "#???????????????? | | #???????# #????????#### "=" ####???????????????? | | ????????# #???????????#"###"#??????????????????? | | ???###### #???????????###?###??????????????????? | | ?"""""""" #???????######??####################?# | | """ """"" #???????? ?#"""##"""##"""##"""##" | | "" " "" #????????""""" ## ""## ""##" "##"""##" | | #????????""""" | | "" "" " #????????""""" | | ??""""""" #????????""""" | | ???"""""" #????????""""" ##"""##"""##""|##" "##! | | ????##### #???????? ?#"""##"""##"""##"""##" | | ######### #???????######??###################### | | """"""""# #????????????????????????????????????? | | = ! "# #????????????????????????????????????? | | !=[*!! "# #????????????????????????????????????? | | ] "# #????????????????????????????????????? | | """""""# #????????????????????????????????????? | | #????????????????????????????????????? | | #????????????????????????????????????? | | #""" """#####????????????????????????????????????? | | #"" "#????????????????????????????????????????? | | #"" "#????????????????????????????????????????? | +----------------------------------------------------+ Best States ------------- Heat Dissipation 25 Energy Generation 18 Energy Capacity 2600 Matter Stores 300 Matter Capacity 300 Sight Range 16 Terrain Scan Density 10 Propulsion Shielding 33 Evasion (%) 55 Recoil Reduction 2 Item Schematics ----------------- None Robot Schematics ------------------ None Fabricated ------------ Nothing Repaired ---------- Nothing Alien Tech Used ----------------- None Achievements -------------- None Challenges ------------ None Game ------ Seed VoltaicNuclearGuard Manual? 0 Play Time 00:31:21 Cumulative 265.5 hours Start 2025.05.28 @ 21:45:04 End 2025.05.28 @ 22:15:46 Sessions 1 Manual Loads 0 Difficulty Rogue Special Mode None Game No. 401 Rogue 401 Adventurer 0 Explorer 0 Win Type - Total 1 Types 1/0/0/0/0/0/0/0/0/0 Lore% 64 Gallery% 63 Achievement% 43 Wizard Run 0 Options --------- Layout 1 ASCII 0 Keyboard 0 Movement Mouse Keybinds 0 Fullscreen 2 Font 24/Smallcaps Map View 50x35 Zoom Use 0% Tactical HUD 1 Map Filters NONE Filters NONE Steam 1 RUN: 3fb7f623-5d7d-44c7-808d-c55ead0ad51d